[Event "Early-Titled-Tuesday-Blitz-October-24-2023"]
[Site "Chess.com"]
[Date "2023.10.24"]
[Round "2"]
[White "NovozhilovSemen"]
[Black "Chessbard1972"]
[Result "1-0"]
[WhiteElo "2672"]
[BlackElo "2343"]
[TimeControl "180+1"]
[EndTime "8:17:05 PDT"]
[Termination "NovozhilovSemen won by checkmate"]

1. d4 {[%clk 0:03:00.9]} 1... Nf6 {[%clk 0:02:58.4]} 2. Nf3 {[%clk 0:03:00.6]}
2... g6 {[%clk 0:02:58.2]} 3. Nc3 {[%clk 0:03:00.6]} 3... d5 {[%clk 0:02:56.5]}
4. Bf4 {[%clk 0:03:00.7]} 4... Bg7 {[%clk 0:02:54.8]} 5. Nb5 {[%clk 0:03:00.8]}
5... Na6 {[%clk 0:02:54.1]} 6. e3 {[%clk 0:03:01.1]} 6... c6 {[%clk 0:02:52.5]}
7. Nc3 {[%clk 0:03:00.7]} 7... Nc7 {[%clk 0:02:48.6]} 8. Be2 {[%clk 0:03:00.9]}
8... Ne6 {[%clk 0:02:45.3]} 9. Be5 {[%clk 0:02:59]} 9... O-O {[%clk 0:02:44.3]}
10. h4 {[%clk 0:02:59.2]} 10... h5 {[%clk 0:02:43.6]} 11. Ng5 {[%clk 0:02:58]}
11... Nc7 {[%clk 0:02:39.5]} 12. f3 {[%clk 0:02:50.9]} 12... Nce8 {[%clk
0:02:34.5]} 13. g4 {[%clk 0:02:49.7]} 13... b5 {[%clk 0:02:24.9]} 14. a3 {[%clk
0:02:21.3]} 14... a5 {[%clk 0:02:24.4]} 15. Nh3 {[%clk 0:02:14.8]} 15... hxg4
{[%clk 0:02:08.7]} 16. fxg4 {[%clk 0:02:12.5]} 16... Ne4 {[%clk 0:02:08.9]} 17.
Nxe4 {[%clk 0:02:06.6]} 17... Bxe5 {[%clk 0:02:04]} 18. dxe5 {[%clk 0:02:06.3]}
18... Qb6 {[%clk 0:01:56]} 19. Nef2 {[%clk 0:01:54.3]} 19... Qxe3 {[%clk
0:01:54.4]} 20. Qd2 {[%clk 0:01:54.5]} 20... Qxe5 {[%clk 0:01:52.3]} 21. h5
{[%clk 0:01:54.8]} 21... Qxb2 {[%clk 0:01:32.7]} 22. Rd1 {[%clk 0:01:53.6]}
22... Qg7 {[%clk 0:01:30.9]} 23. Bd3 {[%clk 0:01:37.7]} 23... Nd6 {[%clk
0:01:26.4]} 24. h6 {[%clk 0:01:29.9]} 24... Qe5+ {[%clk 0:01:23.7]} 25. Kf1
{[%clk 0:01:30]} 25... Ne4 {[%clk 0:01:22.5]} 26. Bxe4 {[%clk 0:01:25.1]} 26...
dxe4 {[%clk 0:01:22.2]} 27. h7+ {[%clk 0:01:17]} 27... Kh8 {[%clk 0:01:15.9]}
28. Qe3 {[%clk 0:01:14]} 28... Be6 {[%clk 0:01:13.6]} 29. Nf4 {[%clk 0:01:06.4]}
29... Bc4+ {[%clk 0:01:12.6]} 30. Kg2 {[%clk 0:01:05.7]} 30... Rad8 {[%clk
0:01:02.5]} 31. Kh3 {[%clk 0:00:31.9]} 31... Bd5 {[%clk 0:00:57.3]} 32. Rhe1
{[%clk 0:00:29.2]} 32... Qg7 {[%clk 0:00:54.5]} 33. Nxe4 {[%clk 0:00:27.9]}
33... Qxh7+ {[%clk 0:00:47.8]} 34. Kg3 {[%clk 0:00:26.9]} 34... Kg8 {[%clk
0:00:43.1]} 35. Nxd5 {[%clk 0:00:21.4]} 35... cxd5 {[%clk 0:00:36.6]} 36. Ng5
{[%clk 0:00:20.6]} 36... Qg7 {[%clk 0:00:33.3]} 37. Rh1 {[%clk 0:00:19.2]} 37...
e5 {[%clk 0:00:19.4]} 38. Rh7 {[%clk 0:00:17.6]} 38... Qf6 {[%clk 0:00:18.3]}
39. Rdh1 {[%clk 0:00:17.8]} 39... Rfe8 {[%clk 0:00:15.4]} 40. Qc1 {[%clk
0:00:16.9]} 40... Qf4+ {[%clk 0:00:13.5]} 41. Qxf4 {[%clk 0:00:16.5]} 41...
exf4+ {[%clk 0:00:14.1]} 42. Kxf4 {[%clk 0:00:17.4]} 42... Re7 {[%clk
0:00:10.6]} 43. Rh8+ {[%clk 0:00:17]} 43... Kg7 {[%clk 0:00:11.2]} 44. R1h7+
{[%clk 0:00:16.9]} 44... Kf6 {[%clk 0:00:12.1]} 45. Rxd8 {[%clk 0:00:17.4]}
45... Re1 {[%clk 0:00:11.5]} 46. Rxf7# {[%clk 0:00:17.2]} 1-0

[Event "Early-Titled-Tuesday-Blitz-October-24-2023"]
[Site "Chess.com"]
[Date "2023.10.24"]
[Round "2"]
[White "SashaKuzhilniy"]
[Black "Millerkallpa"]
[Result "1-0"]
[WhiteElo "2644"]
[BlackElo "2055"]
[TimeControl "180+1"]
[EndTime "8:17:08 PDT"]
[Termination "SashaKuzhilniy won on time"]

1. b3 {[%clk 0:02:58.4]} 1... e5 {[%clk 0:02:57.9]} 2. Bb2 {[%clk 0:02:58.6]}
2... d6 {[%clk 0:02:58.3]} 3. e3 {[%clk 0:02:58.1]} 3... Nf6 {[%clk 0:02:57.4]}
4. c4 {[%clk 0:02:52.3]} 4... Be7 {[%clk 0:02:56.7]} 5. Nf3 {[%clk 0:02:50.2]}
5... O-O {[%clk 0:02:56.2]} 6. d4 {[%clk 0:02:50]} 6... exd4 {[%clk 0:02:49.8]}
7. Nxd4 {[%clk 0:02:50.2]} 7... Nc6 {[%clk 0:02:32.9]} 8. Nxc6 {[%clk
0:02:49.2]} 8... bxc6 {[%clk 0:02:33.4]} 9. Be2 {[%clk 0:02:50.1]} 9... a5
{[%clk 0:02:19.7]} 10. O-O {[%clk 0:02:49.2]} 10... a4 {[%clk 0:02:09.3]} 11. b4
{[%clk 0:02:42.6]} 11... Nd7 {[%clk 0:01:46.1]} 12. a3 {[%clk 0:02:39.8]} 12...
Bf6 {[%clk 0:01:36.8]} 13. Nc3 {[%clk 0:02:39.9]} 13... Nb6 {[%clk 0:01:31.3]}
14. c5 {[%clk 0:02:21.6]} 14... dxc5 {[%clk 0:01:22.9]} 15. bxc5 {[%clk
0:02:22.5]} 15... Nd5 {[%clk 0:01:22.6]} 16. Nxa4 {[%clk 0:02:18.1]} 16... Bxb2
{[%clk 0:01:12]} 17. Nxb2 {[%clk 0:02:19]} 17... Nc3 {[%clk 0:01:12.1]} 18. Qc2
{[%clk 0:02:13.6]} 18... Nxe2+ {[%clk 0:01:10.3]} 19. Qxe2 {[%clk 0:02:14.5]}
19... Ba6 {[%clk 0:01:10.1]} 20. Nc4 {[%clk 0:02:15]} 20... Qd5 {[%clk
0:01:06.4]} 21. Rfc1 {[%clk 0:02:15.4]} 21... Qxc5 {[%clk 0:01:02.8]} 22. Qg4
{[%clk 0:02:13]} 22... Bb5 {[%clk 0:00:57.6]} 23. Nd2 {[%clk 0:01:56.3]} 23...
Qe7 {[%clk 0:00:55.5]} 24. Qb4 {[%clk 0:01:53.3]} 24... Qf6 {[%clk 0:00:44.6]}
25. Nf3 {[%clk 0:01:50.1]} 25... Rfd8 {[%clk 0:00:43.3]} 26. h3 {[%clk
0:01:48.5]} 26... Qd6 {[%clk 0:00:41.4]} 27. Nd4 {[%clk 0:01:45.1]} 27... Qxb4
{[%clk 0:00:39]} 28. axb4 {[%clk 0:01:46]} 28... Rxa1 {[%clk 0:00:34.2]} 29.
Rxa1 {[%clk 0:01:46.9]} 29... g6 {[%clk 0:00:33.9]} 30. Ra7 {[%clk 0:01:40.8]}
30... Rd7 {[%clk 0:00:33.3]} 31. Rb7 {[%clk 0:01:37.8]} 31... Ba4 {[%clk
0:00:33.3]} 32. g4 {[%clk 0:01:32.8]} 32... h6 {[%clk 0:00:32.6]} 33. Kh2 {[%clk
0:01:31]} 33... Kg7 {[%clk 0:00:31.8]} 34. Kg3 {[%clk 0:01:31.4]} 34... Kf6
{[%clk 0:00:31.8]} 35. Ra7 {[%clk 0:01:22.1]} 35... Bb5 {[%clk 0:00:31.8]} 36.
Nxb5 {[%clk 0:01:22.5]} 36... cxb5 {[%clk 0:00:32.7]} 37. Rb7 {[%clk 0:01:23.2]}
37... Ke6 {[%clk 0:00:21.4]} 38. Rxb5 {[%clk 0:01:23.2]} 38... Rd1 {[%clk
0:00:19.5]} 39. Rc5 {[%clk 0:01:19.6]} 39... Kd6 {[%clk 0:00:18.3]} 40. Rc4
{[%clk 0:01:19.7]} 40... Rb1 {[%clk 0:00:17.5]} 41. Rf4 {[%clk 0:01:18.4]} 41...
Ke6 {[%clk 0:00:15.2]} 42. Rc4 {[%clk 0:01:17.5]} 42... Kd6 {[%clk 0:00:14.2]}
43. h4 {[%clk 0:01:16.6]} 43... f6 {[%clk 0:00:13.8]} 44. Rf4 {[%clk 0:01:15.1]}
44... Ke6 {[%clk 0:00:13.8]} 45. Rc4 {[%clk 0:01:12.5]} 45... Kd6 {[%clk
0:00:12.7]} 46. h5 {[%clk 0:01:13.1]} 46... gxh5 {[%clk 0:00:11.8]} 47. gxh5
{[%clk 0:01:14]} 47... Rb2 {[%clk 0:00:12.2]} 48. f3 {[%clk 0:01:12.5]} 48...
Ke6 {[%clk 0:00:12.2]} 49. Rxc7 {[%clk 0:01:09.3]} 49... Rxb4 {[%clk 0:00:12]}
50. Rh7 {[%clk 0:01:09.9]} 50... Kf5 {[%clk 0:00:11.7]} 51. Rxh6 {[%clk
0:01:09.8]} 51... Rb1 {[%clk 0:00:12.2]} 52. e4+ {[%clk 0:01:05.2]} 52... Kg5
{[%clk 0:00:08]} 53. Rg6+ {[%clk 0:01:05.1]} 53... Kxh5 {[%clk 0:00:01.4]} 54.
Rxf6 {[%clk 0:01:06]} 54... Kg5 {[%clk 0:00:02.3]} 55. Rf8 {[%clk 0:01:06.2]}
55... Rg1+ {[%clk 0:00:01.5]} 56. Kf2 {[%clk 0:01:06.7]} 1-0

[Event "Early-Titled-Tuesday-Blitz-October-24-2023"]
[Site "Chess.com"]
[Date "2023.10.24"]
[Round "2"]
[White "SchmakAttack"]
[Black "SnekkerAndersen"]
[Result "1-0"]
[WhiteElo "2759"]
[BlackElo "2518"]
[TimeControl "180+1"]
[EndTime "8:17:11 PDT"]
[Termination "SchmakAttack won by resignation"]

1. d4 {[%clk 0:03:00.9]} 1... d5 {[%clk 0:02:17.9]} 2. Nf3 {[%clk 0:02:58.9]}
2... Nf6 {[%clk 0:02:00.4]} 3. c3 {[%clk 0:02:57.2]} 3... e6 {[%clk 0:01:55.8]}
4. Bg5 {[%clk 0:02:51.7]} 4... c5 {[%clk 0:01:51.6]} 5. e3 {[%clk 0:02:48.9]}
5... Nc6 {[%clk 0:01:51.1]} 6. Nbd2 {[%clk 0:02:48.4]} 6... Be7 {[%clk
0:01:41.8]} 7. Bd3 {[%clk 0:02:47.7]} 7... h6 {[%clk 0:01:38.1]} 8. Bxf6 {[%clk
0:02:07.1]} 8... Bxf6 {[%clk 0:01:35.8]} 9. dxc5 {[%clk 0:02:05.5]} 9... O-O
{[%clk 0:01:15.2]} 10. Qe2 {[%clk 0:01:59.1]} 10... Qe7 {[%clk 0:01:14.9]} 11.
Nb3 {[%clk 0:01:58.8]} 11... a5 {[%clk 0:01:15.3]} 12. a4 {[%clk 0:01:56.2]}
12... g6 {[%clk 0:01:09.7]} 13. e4 {[%clk 0:01:53.6]} 13... dxe4 {[%clk
0:01:09.4]} 14. Bxe4 {[%clk 0:01:53.3]} 14... Bg7 {[%clk 0:01:10]} 15. O-O
{[%clk 0:01:44.7]} 15... f5 {[%clk 0:01:09.9]} 16. Bxc6 {[%clk 0:01:36.2]} 16...
bxc6 {[%clk 0:01:10.8]} 17. Rfe1 {[%clk 0:01:36.7]} 17... Qc7 {[%clk 0:00:59.8]}
18. Nbd4 {[%clk 0:01:32.3]} 18... Re8 {[%clk 0:00:56.2]} 19. Ne5 {[%clk
0:01:31]} 19... Kh7 {[%clk 0:00:50.4]} 20. f4 {[%clk 0:01:24.4]} 20... Ba6
{[%clk 0:00:43.9]} 21. Qf3 {[%clk 0:01:24]} 21... Qe7 {[%clk 0:00:31.1]} 22.
Qxc6 {[%clk 0:01:13.2]} 22... Bb7 {[%clk 0:00:17.8]} 23. Qd6 {[%clk 0:01:07.7]}
23... Bd5 {[%clk 0:00:17.5]} 24. c4 {[%clk 0:00:55.8]} 24... Bxe5 {[%clk
0:00:16.2]} 25. Rxe5 {[%clk 0:00:51.4]} 25... Qxd6 {[%clk 0:00:15.7]} 26. cxd6
{[%clk 0:00:51.6]} 26... Bxc4 {[%clk 0:00:16.4]} 27. Rc1 {[%clk 0:00:52.1]}
27... Bd5 {[%clk 0:00:15.4]} 28. Rc7+ {[%clk 0:00:50.1]} 28... Kg8 {[%clk
0:00:15.7]} 29. d7 {[%clk 0:00:46.2]} 29... Red8 {[%clk 0:00:15.7]} 30. Nxe6
{[%clk 0:00:45.5]} 30... Bxe6 {[%clk 0:00:15.4]} 31. Rxe6 {[%clk 0:00:46.4]}
31... Kf7 {[%clk 0:00:16.3]} 32. Rcc6 {[%clk 0:00:37.8]} 32... Rab8 {[%clk
0:00:16.3]} 33. Rf6+ {[%clk 0:00:32.7]} 33... Ke7 {[%clk 0:00:16.3]} 34. Rxg6
{[%clk 0:00:31.2]} 34... Rxb2 {[%clk 0:00:16]} 35. Rg7+ {[%clk 0:00:24.6]} 35...
Kf8 {[%clk 0:00:15.8]} 36. Rh7 {[%clk 0:00:25.2]} 36... Kg8 {[%clk 0:00:14.8]}
37. Re7 {[%clk 0:00:25.9]} 37... Kf8 {[%clk 0:00:14.8]} 38. Rce6 {[%clk
0:00:26.6]} 38... Rb1+ {[%clk 0:00:08.1]} 39. Kf2 {[%clk 0:00:26.6]} 39... Rd1
{[%clk 0:00:09]} 40. Re8+ {[%clk 0:00:25.9]} 40... Kf7 {[%clk 0:00:09.6]} 41.
Rxh6 {[%clk 0:00:17.7]} 41... Rxe8 {[%clk 0:00:09]} 42. Rf6+ {[%clk 0:00:13.7]}
42... Ke7 {[%clk 0:00:07.3]} 43. dxe8=Q+ {[%clk 0:00:14.6]} 43... Kxe8 {[%clk
0:00:07.5]} 44. Rxf5 {[%clk 0:00:15.3]} 44... Rd2+ {[%clk 0:00:07.6]} 45. Kg3
{[%clk 0:00:15.9]} 45... Rd5 {[%clk 0:00:07.4]} 46. Rxd5 {[%clk 0:00:16]} 1-0

[Event "Early-Titled-Tuesday-Blitz-October-24-2023"]
[Site "Chess.com"]
[Date "2023.10.24"]
[Round "2"]
[White "Haykoooo0o"]
[Black "Thunderbolt135"]
[Result "0-1"]
[WhiteElo "2480"]
[BlackElo "2760"]
[TimeControl "180+1"]
[EndTime "8:17:12 PDT"]
[Termination "Thunderbolt135 won by resignation"]

1. Nf3 {[%clk 0:03:00.9]} 1... c5 {[%clk 0:02:58]} 2. g3 {[%clk 0:02:57.6]} 2...
g6 {[%clk 0:02:58.1]} 3. Bg2 {[%clk 0:02:57.2]} 3... Bg7 {[%clk 0:02:58.8]} 4.
O-O {[%clk 0:02:57.9]} 4... Nc6 {[%clk 0:02:59.4]} 5. c4 {[%clk 0:02:58.5]} 5...
d6 {[%clk 0:02:56.9]} 6. Nc3 {[%clk 0:02:58.7]} 6... Nf6 {[%clk 0:02:56.7]} 7.
d4 {[%clk 0:02:56.6]} 7... cxd4 {[%clk 0:02:56]} 8. Nxd4 {[%clk 0:02:57.5]} 8...
Bd7 {[%clk 0:02:56.7]} 9. Be3 {[%clk 0:02:54.2]} 9... O-O {[%clk 0:02:56]} 10.
Qd2 {[%clk 0:02:53.3]} 10... Rc8 {[%clk 0:02:52.8]} 11. Nxc6 {[%clk 0:02:52]}
11... Bxc6 {[%clk 0:02:53.7]} 12. Bxc6 {[%clk 0:02:47.7]} 12... Rxc6 {[%clk
0:02:54.6]} 13. b3 {[%clk 0:02:46.8]} 13... a6 {[%clk 0:02:54.6]} 14. Bh6 {[%clk
0:02:45.4]} 14... Bxh6 {[%clk 0:02:54.8]} 15. Qxh6 {[%clk 0:02:46.3]} 15... b5
{[%clk 0:02:55.1]} 16. Qf4 {[%clk 0:02:29.9]} 16... bxc4 {[%clk 0:02:55.5]} 17.
bxc4 {[%clk 0:02:28.6]} 17... Qa5 {[%clk 0:02:55.9]} 18. Rfc1 {[%clk 0:02:25.3]}
18... Rfc8 {[%clk 0:02:56.3]} 19. Ne4 {[%clk 0:02:22.2]} 19... Nxe4 {[%clk
0:02:53.2]} 20. Qxe4 {[%clk 0:02:23.1]} 20... Qe5 {[%clk 0:02:31.2]} 21. Qxe5
{[%clk 0:02:19.5]} 21... dxe5 {[%clk 0:02:32.1]} 22. Rab1 {[%clk 0:02:13.2]}
22... Rxc4 {[%clk 0:02:32.1]} 23. Rxc4 {[%clk 0:02:13.7]} 23... Rxc4 {[%clk
0:02:33]} 24. Rb2 {[%clk 0:02:12.8]} 24... Ra4 {[%clk 0:02:31.3]} 25. Kg2 {[%clk
0:02:12.9]} 25... g5 {[%clk 0:02:26.9]} 26. h3 {[%clk 0:02:10]} 26... h5 {[%clk
0:02:27.3]} 27. e3 {[%clk 0:02:09.4]} 27... g4 {[%clk 0:02:26.7]} 28. h4 {[%clk
0:02:07.4]} 28... Kg7 {[%clk 0:02:27.1]} 29. Rc2 {[%clk 0:02:07.1]} 29... Kg6
{[%clk 0:02:26.8]} 30. Kf1 {[%clk 0:02:06.1]} 30... Kf5 {[%clk 0:02:21.8]} 31.
Ke2 {[%clk 0:02:04.4]} 31... Ke4 {[%clk 0:02:20.3]} 32. Rb2 {[%clk 0:02:04.6]}
32... f5 {[%clk 0:02:10.7]} 33. Rc2 {[%clk 0:02:00.3]} 33... f4 {[%clk
0:02:10.7]} 34. Rb2 {[%clk 0:01:58.3]} 34... a5 {[%clk 0:02:04.9]} 35. Rc2
{[%clk 0:01:56.5]} 35... e6 {[%clk 0:01:56.2]} 36. exf4 {[%clk 0:01:18.1]} 36...
exf4 {[%clk 0:01:57.1]} 37. gxf4 {[%clk 0:01:17.1]} 37... Kxf4 {[%clk 0:01:58]}
38. Kf1 {[%clk 0:01:16.4]} 38... g3 {[%clk 0:01:46.9]} 39. Kg2 {[%clk
0:01:07.2]} 39... gxf2 {[%clk 0:01:46.5]} 40. Rxf2+ {[%clk 0:01:07]} 40... Kg4
{[%clk 0:01:46.7]} 41. Re2 {[%clk 0:01:07.6]} 41... e5 {[%clk 0:01:26.9]} 42.
Rxe5 {[%clk 0:01:06.5]} 42... Rxa2+ {[%clk 0:01:26.8]} 43. Kg1 {[%clk
0:01:02.7]} 43... Kxh4 {[%clk 0:01:27.1]} 44. Re8 {[%clk 0:00:55.5]} 44... Rb2
{[%clk 0:01:09.3]} 45. Re5 {[%clk 0:00:48.3]} 45... a4 {[%clk 0:01:01.2]} 46.
Re4+ {[%clk 0:00:45.5]} 46... Kg3 {[%clk 0:01:00.8]} 47. Re3+ {[%clk 0:00:46]}
47... Kf4 {[%clk 0:00:59.5]} 48. Rh3 {[%clk 0:00:42.4]} 48... Kg4 {[%clk
0:00:59.4]} 49. Ra3 {[%clk 0:00:39.4]} 49... Rb4 {[%clk 0:00:59.7]} 50. Ra2
{[%clk 0:00:26.2]} 50... h4 {[%clk 0:00:59.1]} 51. Kg2 {[%clk 0:00:25.2]} 51...
Kf5 {[%clk 0:00:57.3]} 52. Kh3 {[%clk 0:00:17.3]} 52... Ke5 {[%clk 0:00:56.6]}
53. Rd2 {[%clk 0:00:16.1]} 53... Rd4 {[%clk 0:00:55.3]} 54. Rb2 {[%clk
0:00:11.1]} 54... Kd5 {[%clk 0:00:55.1]} 55. Rb8 {[%clk 0:00:11.8]} 55... Kc4
{[%clk 0:00:53.2]} 56. Ra8 {[%clk 0:00:10.1]} 56... Kb3 {[%clk 0:00:53.5]} 0-1

[Event "Early-Titled-Tuesday-Blitz-October-24-2023"]
[Site "Chess.com"]
[Date "2023.10.24"]
[Round "2"]
[White "victormago"]
[Black "Alenzer"]
[Result "1-0"]
[WhiteElo "2433"]
[BlackElo "2080"]
[TimeControl "180+1"]
[EndTime "8:17:13 PDT"]
[Termination "victormago won by resignation"]

1. d4 {[%clk 0:02:58.5]} 1... d5 {[%clk 0:02:59.4]} 2. c4 {[%clk 0:02:55.9]}
2... dxc4 {[%clk 0:02:59.5]} 3. Nf3 {[%clk 0:02:55.2]} 3... a6 {[%clk
0:02:58.7]} 4. a4 {[%clk 0:02:54.6]} 4... Nf6 {[%clk 0:02:55.7]} 5. e3 {[%clk
0:02:54.1]} 5... e6 {[%clk 0:02:47.9]} 6. Bxc4 {[%clk 0:02:53.6]} 6... b6 {[%clk
0:02:41.3]} 7. O-O {[%clk 0:02:52]} 7... Bb7 {[%clk 0:02:35.4]} 8. Qe2 {[%clk
0:02:51.8]} 8... Be7 {[%clk 0:02:24.3]} 9. Nc3 {[%clk 0:02:50.8]} 9... O-O
{[%clk 0:02:20.1]} 10. Rd1 {[%clk 0:02:50.5]} 10... Nbd7 {[%clk 0:02:19.1]} 11.
e4 {[%clk 0:02:50.5]} 11... Rc8 {[%clk 0:02:16.8]} 12. Bxa6 {[%clk 0:02:33.6]}
12... Bxa6 {[%clk 0:02:15.1]} 13. Qxa6 {[%clk 0:02:33.6]} 13... Ra8 {[%clk
0:02:10.5]} 14. Qe2 {[%clk 0:02:33.1]} 14... Bb4 {[%clk 0:02:02.9]} 15. Bg5
{[%clk 0:02:30.1]} 15... h6 {[%clk 0:02:02.6]} 16. Bh4 {[%clk 0:02:29]} 16... g5
{[%clk 0:01:55.5]} 17. Bg3 {[%clk 0:02:28.4]} 17... Nh5 {[%clk 0:01:54.5]} 18.
e5 {[%clk 0:02:19.2]} 18... Qe7 {[%clk 0:01:50.7]} 19. Ne4 {[%clk 0:02:14.8]}
19... Nf4 {[%clk 0:01:42.3]} 20. Bxf4 {[%clk 0:02:13.9]} 20... gxf4 {[%clk
0:01:41.2]} 21. b3 {[%clk 0:02:09.8]} 21... f5 {[%clk 0:01:30.4]} 22. exf6
{[%clk 0:02:08.6]} 22... Nxf6 {[%clk 0:01:28.1]} 23. Nxf6+ {[%clk 0:02:08.5]}
23... Qxf6 {[%clk 0:01:28]} 24. Rac1 {[%clk 0:02:08.2]} 24... c5 {[%clk
0:01:27.1]} 25. dxc5 {[%clk 0:01:58.3]} 25... Bxc5 {[%clk 0:01:25.6]} 26. Rc4
{[%clk 0:01:55.7]} 26... Rad8 {[%clk 0:01:20.3]} 27. Re1 {[%clk 0:01:54.9]}
27... Rd6 {[%clk 0:01:12]} 28. Re4 {[%clk 0:01:54.2]} 28... Re8 {[%clk
0:01:07.2]} 29. Qc4 {[%clk 0:01:50.5]} 29... Kg7 {[%clk 0:01:01.1]} 30. h3
{[%clk 0:01:48.4]} 30... Qb2 {[%clk 0:00:55.9]} 31. R4e2 {[%clk 0:01:42.3]}
31... Qf6 {[%clk 0:00:55.1]} 32. b4 {[%clk 0:01:34.3]} 32... Bd4 {[%clk
0:00:49.9]} 33. Qc7+ {[%clk 0:01:31.1]} 33... Qe7 {[%clk 0:00:45.1]} 34. Qc4
{[%clk 0:01:18.3]} 34... Bf6 {[%clk 0:00:42]} 35. Qxf4 {[%clk 0:01:17.4]} 35...
Qd7 {[%clk 0:00:28.3]} 36. a5 {[%clk 0:01:13.4]} 36... bxa5 {[%clk 0:00:28.3]}
37. bxa5 {[%clk 0:01:14.3]} 37... Ra6 {[%clk 0:00:27.1]} 38. Qg4+ {[%clk
0:01:13.1]} 38... Kh8 {[%clk 0:00:25]} 39. Nh4 {[%clk 0:01:09]} 39... Bg7 {[%clk
0:00:23.8]} 40. Ng6+ {[%clk 0:01:06.4]} 40... Kh7 {[%clk 0:00:24]} 41. Qe4
{[%clk 0:01:05.6]} 41... Kg8 {[%clk 0:00:22.7]} 42. Nf4 {[%clk 0:01:02]} 42...
e5 {[%clk 0:00:19.4]} 43. Nh5 {[%clk 0:00:59.5]} 43... Rxa5 {[%clk 0:00:18.5]}
44. Qg6 {[%clk 0:00:59.6]} 44... Qf7 {[%clk 0:00:18.7]} 45. Nf6+ {[%clk
0:00:58.2]} 45... Qxf6 {[%clk 0:00:18.7]} 46. Qxe8+ {[%clk 0:00:58.2]} 46... Kh7
{[%clk 0:00:18.7]} 47. Qc8 {[%clk 0:00:56.2]} 47... Ra6 {[%clk 0:00:17.4]} 48.
Rxe5 {[%clk 0:00:50.7]} 48... Ra2 {[%clk 0:00:16.2]} 49. Qf5+ {[%clk 0:00:48.5]}
49... Qxf5 {[%clk 0:00:15.2]} 50. Rxf5 {[%clk 0:00:49.4]} 50... Bc3 {[%clk
0:00:14.5]} 51. Re6 {[%clk 0:00:46.4]} 51... Kg7 {[%clk 0:00:14.4]} 52. g4
{[%clk 0:00:45.3]} 52... Ra1+ {[%clk 0:00:13.4]} 53. Kg2 {[%clk 0:00:45.7]}
53... Ra3 {[%clk 0:00:13.9]} 54. Rf3 {[%clk 0:00:44.8]} 54... Bb4 {[%clk
0:00:12.5]} 55. Rxa3 {[%clk 0:00:44.4]} 55... Bxa3 {[%clk 0:00:12.4]} 56. f4
{[%clk 0:00:45.1]} 1-0

[Event "Early-Titled-Tuesday-Blitz-October-24-2023"]
[Site "Chess.com"]
[Date "2023.10.24"]
[Round "2"]
[White "Agibileg"]
[Black "nitpicker"]
[Result "0-1"]
[WhiteElo "2640"]
[BlackElo "2263"]
[TimeControl "180+1"]
[EndTime "8:17:14 PDT"]
[Termination "nitpicker won on time"]

1. d4 {[%clk 0:02:59.8]} 1... Nf6 {[%clk 0:02:59]} 2. c4 {[%clk 0:02:59.6]} 2...
e6 {[%clk 0:02:58.8]} 3. Nc3 {[%clk 0:02:59.6]} 3... Bb4 {[%clk 0:02:58]} 4. f3
{[%clk 0:02:59.4]} 4... c5 {[%clk 0:02:51]} 5. d5 {[%clk 0:02:59.3]} 5... b5
{[%clk 0:02:38.1]} 6. e4 {[%clk 0:02:54.4]} 6... O-O {[%clk 0:02:36.6]} 7. e5
{[%clk 0:02:46.7]} 7... Ne8 {[%clk 0:02:30.8]} 8. f4 {[%clk 0:02:46.7]} 8... d6
{[%clk 0:02:01.4]} 9. Nf3 {[%clk 0:02:35.4]} 9... f6 {[%clk 0:01:54.2]} 10. f5
{[%clk 0:02:22]} 10... fxe5 {[%clk 0:01:43.2]} 11. fxe6 {[%clk 0:02:20.3]} 11...
Qf6 {[%clk 0:01:20.6]} 12. Bd3 {[%clk 0:02:15.1]} 12... e4 {[%clk 0:01:10.2]}
13. Bxe4 {[%clk 0:02:13.9]} 13... Bxc3+ {[%clk 0:01:08.6]} 14. bxc3 {[%clk
0:02:13.9]} 14... Qxc3+ {[%clk 0:01:08.3]} 15. Bd2 {[%clk 0:02:13.8]} 15... Qxc4
{[%clk 0:01:08]} 16. Ng5 {[%clk 0:01:35.4]} 16... Nf6 {[%clk 0:00:53.3]} 17. Rc1
{[%clk 0:01:34.9]} 17... Qd4 {[%clk 0:00:50.4]} 18. Qc2 {[%clk 0:01:19.6]} 18...
h6 {[%clk 0:00:46.5]} 19. Bh7+ {[%clk 0:01:18.3]} 19... Kh8 {[%clk 0:00:45]} 20.
Nf7+ {[%clk 0:01:17.4]} 20... Rxf7 {[%clk 0:00:45]} 21. exf7 {[%clk 0:01:18.3]}
21... Nbd7 {[%clk 0:00:43.8]} 22. Bf5 {[%clk 0:00:54.9]} 22... Bb7 {[%clk
0:00:40.8]} 23. Bxd7 {[%clk 0:00:44.3]} 23... Nxd7 {[%clk 0:00:36.1]} 24. Qf5
{[%clk 0:00:35.9]} 24... Nf6 {[%clk 0:00:31.9]} 25. Rf1 {[%clk 0:00:26.9]} 25...
Bxd5 {[%clk 0:00:29.9]} 26. Bxh6 {[%clk 0:00:26.6]} 26... Bxf7 {[%clk
0:00:26.3]} 27. Qh3 {[%clk 0:00:20]} 27... Re8+ {[%clk 0:00:18.8]} 28. Be3+
{[%clk 0:00:17.7]} 28... Kg8 {[%clk 0:00:19.4]} 29. Rf3 {[%clk 0:00:10.6]} 29...
Ng4 {[%clk 0:00:18.3]} 30. Ke2 {[%clk 0:00:04]} 30... Bc4+ {[%clk 0:00:15.9]}
31. Rxc4 {[%clk 0:00:03.9]} 31... Qxc4+ {[%clk 0:00:15.4]} 32. Kd2 {[%clk
0:00:03.8]} 32... Qxa2+ {[%clk 0:00:15.2]} 33. Kd1 {[%clk 0:00:02.6]} 33... Qb1+
{[%clk 0:00:14.9]} 34. Kd2 {[%clk 0:00:02.7]} 34... Qb2+ {[%clk 0:00:15]} 35.
Kd1 {[%clk 0:00:03.1]} 35... Nxe3+ {[%clk 0:00:14.1]} 36. Rxe3 {[%clk 0:00:04]}
36... Qb1+ {[%clk 0:00:13.2]} 37. Kd2 {[%clk 0:00:03.5]} 37... Rxe3 {[%clk
0:00:12.5]} 38. Qxe3 {[%clk 0:00:02.5]} 38... Qf5 {[%clk 0:00:12.2]} 39. Qe8+
{[%clk 0:00:02.1]} 39... Kh7 {[%clk 0:00:12.6]} 40. g3 {[%clk 0:00:01.2]} 40...
Qd5+ {[%clk 0:00:12.5]} 41. Kc2 {[%clk 0:00:01.1]} 41... b4 {[%clk 0:00:13]} 0-1